[Event "*** Titled Tuesday Blitz"]
[Site "Chess.com"]
[Date "2020.04.28"]
[Round "6"]
[White "sergeikim"]
[Black "Batsai"]
[Result "0-1"]
[WhiteElo "2419"]
[BlackElo "2259"]
[TimeControl "180+1"]
[EndTime "11:08:16 PDT"]
[Termination "Batsai won by checkmate"]

1. d4 {[%clk 0:03:00.9]} 1... Nf6 {[%clk 0:02:59.6]} 2. c4 {[%clk 0:03:00.7]}
2... e6 {[%clk 0:02:59.3]} 3. Nc3 {[%clk 0:03:00.7]} 3... d5 {[%clk 0:02:58.9]}
4. Nf3 {[%clk 0:02:59.2]} 4... dxc4 {[%clk 0:02:59.2]} 5. e3 {[%clk 0:02:58.4]}
5... a6 {[%clk 0:02:58.6]} 6. a4 {[%clk 0:02:56.2]} 6... c5 {[%clk 0:02:56.4]}
7. Bxc4 {[%clk 0:02:55.7]} 7... Nc6 {[%clk 0:02:56.4]} 8. O-O {[%clk 0:02:54.4]}
8... Qc7 {[%clk 0:02:55.4]} 9. Re1 {[%clk 0:02:43.9]} 9... Be7 {[%clk
0:02:53.6]} 10. h3 {[%clk 0:02:38.6]} 10... O-O {[%clk 0:02:52.8]} 11. Ba2
{[%clk 0:02:34.7]} 11... Nb4 {[%clk 0:02:52]} 12. Bb1 {[%clk 0:02:33.8]} 12...
Rd8 {[%clk 0:02:46.1]} 13. Qe2 {[%clk 0:02:30.6]} 13... b6 {[%clk 0:02:38.2]}
14. Rd1 {[%clk 0:02:28]} 14... a5 {[%clk 0:02:30.2]} 15. Nb5 {[%clk 0:02:24.4]}
15... Qb8 {[%clk 0:01:51]} 16. e4 {[%clk 0:02:22.7]} 16... cxd4 {[%clk
0:01:40.3]} 17. Nfxd4 {[%clk 0:02:10.5]} 17... e5 {[%clk 0:01:08.9]} 18. Nf5
{[%clk 0:02:06.4]} 18... Bxf5 {[%clk 0:01:07.6]} 19. exf5 {[%clk 0:02:04.6]}
19... Rxd1+ {[%clk 0:01:05]} 20. Qxd1 {[%clk 0:02:04.5]} 20... Qb7 {[%clk
0:01:04.9]} 21. Be3 {[%clk 0:01:56.9]} 21... Rd8 {[%clk 0:01:03]} 22. Qe2 {[%clk
0:01:56.3]} 22... h6 {[%clk 0:00:38.8]} 23. Bc2 {[%clk 0:01:51.3]} 23... Qc6
{[%clk 0:00:36.8]} 24. Bb3 {[%clk 0:01:48.1]} 24... Rd3 {[%clk 0:00:31]} 25. Rc1
{[%clk 0:01:36.7]} 25... Qd7 {[%clk 0:00:27.3]} 26. Bc4 {[%clk 0:01:29.3]} 26...
Qxf5 {[%clk 0:00:13.8]} 27. Bxd3 {[%clk 0:01:22.6]} 27... Nxd3 {[%clk
0:00:14.7]} 28. Rc7 {[%clk 0:01:19.5]} 28... Bb4 {[%clk 0:00:13.5]} 29. Qf3
{[%clk 0:01:06.4]} 29... Qg6 {[%clk 0:00:11.1]} 30. b3 {[%clk 0:00:55.8]} 30...
Ne1 {[%clk 0:00:07.1]} 31. Qg3 {[%clk 0:00:38.8]} 31... Qb1 {[%clk 0:00:06.6]}
32. Rc8+ {[%clk 0:00:36]} 32... Kh7 {[%clk 0:00:06.2]} 33. Rc1 {[%clk 0:00:35]}
33... Qf5 {[%clk 0:00:04.8]} 34. Bxb6 {[%clk 0:00:32.4]} 34... Nd3 {[%clk
0:00:04.6]} 35. Rf1 {[%clk 0:00:31.2]} 35... Nf4 {[%clk 0:00:04.5]} 36. Qf3
{[%clk 0:00:28.1]} 36... e4 {[%clk 0:00:03.6]} 37. Qd1 {[%clk 0:00:27.7]} 37...
N6d5 {[%clk 0:00:03.5]} 38. Be3 {[%clk 0:00:26.2]} 38... Qg5 {[%clk 0:00:03.3]}
39. Bxf4 {[%clk 0:00:24.4]} 39... Nxf4 {[%clk 0:00:04.2]} 40. Qg4 {[%clk
0:00:23.3]} 40... Qf6 {[%clk 0:00:04.4]} 41. Rd1 {[%clk 0:00:20.9]} 41... h5
{[%clk 0:00:04.5]} 42. Qc8 {[%clk 0:00:17.8]} 42... Qg5 {[%clk 0:00:04.3]} 43.
g3 {[%clk 0:00:16.7]} 43... Ne2+ {[%clk 0:00:04]} 44. Kf1 {[%clk 0:00:16.1]}
44... Qf6 {[%clk 0:00:01.9]} 45. Kxe2 {[%clk 0:00:06.8]} 45... Qf3+ {[%clk
0:00:02.2]} 46. Kf1 {[%clk 0:00:07.4]} 46... Qxd1+ {[%clk 0:00:03.1]} 47. Kg2
{[%clk 0:00:08.1]} 47... Qf3+ {[%clk 0:00:04]} 48. Kg1 {[%clk 0:00:08.1]} 48...
Be1 {[%clk 0:00:04.6]} 49. Qc2 {[%clk 0:00:06.3]} 49... g6 {[%clk 0:00:04.8]}
50. Kf1 {[%clk 0:00:05.6]} 50... Bb4 {[%clk 0:00:04]} 51. Nd4 {[%clk 0:00:05.2]}
51... Qh1+ {[%clk 0:00:04]} 52. Ke2 {[%clk 0:00:05.1]} 52... Qxh3 {[%clk
0:00:04.1]} 53. Qxe4 {[%clk 0:00:04.9]} 53... Qh2 {[%clk 0:00:03.5]} 54. Qf3
{[%clk 0:00:04.5]} 54... Kg7 {[%clk 0:00:03.6]} 55. Nc6 {[%clk 0:00:04.2]} 55...
Qg1 {[%clk 0:00:03.5]} 56. Ne5 {[%clk 0:00:03.9]} 56... Qe1+ {[%clk 0:00:03.1]}
57. Kd3 {[%clk 0:00:03.9]} 57... Qc3+ {[%clk 0:00:03.7]} 58. Ke4 {[%clk
0:00:03]} 58... f5+ {[%clk 0:00:03.9]} 59. Kd5 {[%clk 0:00:02.3]} 59... Qc5+
{[%clk 0:00:04.3]} 60. Ke6 {[%clk 0:00:01.9]} 60... Qd6# {[%clk 0:00:05.2]} 0-1

[Event "*** Titled Tuesday Blitz"]
[Site "Chess.com"]
[Date "2020.04.28"]
[Round "6"]
[White "Anaj14"]
[Black "Belka1989"]
[Result "0-1"]
[WhiteElo "2151"]
[BlackElo "2302"]
[TimeControl "180+1"]
[EndTime "11:08:18 PDT"]
[Termination "Belka1989 won on time"]

1. c4 {[%clk 0:02:59.4]} 1... e5 {[%clk 0:02:58.8]} 2. Nc3 {[%clk 0:02:58.6]}
2... Nf6 {[%clk 0:02:59.2]} 3. Nf3 {[%clk 0:02:58.4]} 3... Nc6 {[%clk
0:02:58.8]} 4. g3 {[%clk 0:02:58.3]} 4... d5 {[%clk 0:02:54.2]} 5. cxd5 {[%clk
0:02:59.2]} 5... Nxd5 {[%clk 0:02:55.1]} 6. Bg2 {[%clk 0:02:57.5]} 6... Be6
{[%clk 0:02:50.6]} 7. O-O {[%clk 0:02:56.8]} 7... Be7 {[%clk 0:02:46]} 8. d3
{[%clk 0:02:50.9]} 8... O-O {[%clk 0:02:44.8]} 9. a3 {[%clk 0:02:49.3]} 9... Qd7
{[%clk 0:02:32.5]} 10. Re1 {[%clk 0:02:48.2]} 10... Rfd8 {[%clk 0:02:19.2]} 11.
Qc2 {[%clk 0:02:33.9]} 11... Bf6 {[%clk 0:02:04.3]} 12. Ng5 {[%clk 0:02:20.3]}
12... Bxg5 {[%clk 0:01:58.6]} 13. Bxg5 {[%clk 0:02:19.2]} 13... f6 {[%clk
0:01:59.3]} 14. Bd2 {[%clk 0:02:15.1]} 14... Nd4 {[%clk 0:01:36.9]} 15. Qb1
{[%clk 0:02:01]} 15... Nb3 {[%clk 0:01:20.5]} 16. Qd1 {[%clk 0:01:47]} 16...
Nxa1 {[%clk 0:01:18.3]} 17. Qxa1 {[%clk 0:01:47.9]} 17... Nxc3 {[%clk
0:01:08.7]} 18. bxc3 {[%clk 0:01:46.8]} 18... Bd5 {[%clk 0:01:09.4]} 19. e4
{[%clk 0:01:44.9]} 19... Be6 {[%clk 0:01:09.6]} 20. Bf1 {[%clk 0:01:44.6]} 20...
c5 {[%clk 0:00:53.7]} 21. Be3 {[%clk 0:01:44.8]} 21... b6 {[%clk 0:00:53.7]} 22.
Rd1 {[%clk 0:01:43.8]} 22... Bg4 {[%clk 0:00:35]} 23. Rd2 {[%clk 0:01:40.4]}
23... Qc6 {[%clk 0:00:28]} 24. a4 {[%clk 0:01:38]} 24... Rd6 {[%clk 0:00:24.9]}
25. h3 {[%clk 0:01:33.7]} 25... Be6 {[%clk 0:00:20.4]} 26. f3 {[%clk 0:01:31.8]}
26... Rad8 {[%clk 0:00:20.3]} 27. Rb2 {[%clk 0:01:22]} 27... Kh8 {[%clk
0:00:17.5]} 28. g4 {[%clk 0:01:13.8]} 28... g5 {[%clk 0:00:15.7]} 29. Kf2 {[%clk
0:01:11.1]} 29... Kg7 {[%clk 0:00:15.7]} 30. Qa3 {[%clk 0:00:59.2]} 30... Bf7
{[%clk 0:00:14.2]} 31. a5 {[%clk 0:00:58.6]} 31... Qc7 {[%clk 0:00:07.2]} 32.
axb6 {[%clk 0:00:48.4]} 32... axb6 {[%clk 0:00:08.1]} 33. Qa6 {[%clk 0:00:48.5]}
33... h6 {[%clk 0:00:07.8]} 34. Be2 {[%clk 0:00:40.4]} 34... R8d7 {[%clk
0:00:08]} 35. Qa1 {[%clk 0:00:36.9]} 35... Qa7 {[%clk 0:00:07.5]} 36. Qb1 {[%clk
0:00:37.2]} 36... Qc7 {[%clk 0:00:07.5]} 37. h4 {[%clk 0:00:29]} 37... Be6
{[%clk 0:00:07.4]} 38. hxg5 {[%clk 0:00:28.5]} 38... fxg5 {[%clk 0:00:08.3]} 39.
Kg3 {[%clk 0:00:27.6]} 39... Rf7 {[%clk 0:00:08.6]} 40. Rd2 {[%clk 0:00:25.7]}
40... Rfd7 {[%clk 0:00:07.8]} 41. Qa1 {[%clk 0:00:22.3]} 41... Qd8 {[%clk
0:00:07.8]} 42. Rb2 {[%clk 0:00:20.6]} 42... Rf7 {[%clk 0:00:07.4]} 43. Qa6
{[%clk 0:00:19]} 43... Rfd7 {[%clk 0:00:07.6]} 44. Qa1 {[%clk 0:00:14]} 44...
Qc7 {[%clk 0:00:08.1]} 45. Rd2 {[%clk 0:00:13.9]} 45... Bf7 {[%clk 0:00:08]} 46.
d4 {[%clk 0:00:14]} 46... cxd4 {[%clk 0:00:07.5]} 47. cxd4 {[%clk 0:00:14.9]}
47... Qd8 {[%clk 0:00:04.7]} 48. d5 {[%clk 0:00:14.8]} 48... Qc7 {[%clk
0:00:03.4]} 49. Rb2 {[%clk 0:00:14.8]} 49... Kf6 {[%clk 0:00:03.3]} 50. Rb5
{[%clk 0:00:13.9]} 50... Rd8 {[%clk 0:00:02.2]} 51. Rb3 {[%clk 0:00:09.3]} 51...
Rb8 {[%clk 0:00:02.3]} 52. Rc3 {[%clk 0:00:09.5]} 52... Qd7 {[%clk 0:00:02.6]}
53. Rb3 {[%clk 0:00:08.4]} 53... Qc7 {[%clk 0:00:02.9]} 54. Bb5 {[%clk
0:00:08.8]} 54... Qb7 {[%clk 0:00:02.9]} 55. Bc6 {[%clk 0:00:08.5]} 55... Qc7
{[%clk 0:00:02.9]} 56. Rc3 {[%clk 0:00:08.3]} 56... Qe7 {[%clk 0:00:02.5]} 57.
Bc1 {[%clk 0:00:07.7]} 57... Qd8 {[%clk 0:00:02.8]} 58. Bb2 {[%clk 0:00:08.2]}
58... Qc7 {[%clk 0:00:01.9]} 59. Rd3 {[%clk 0:00:02.5]} 59... Qd8 {[%clk
0:00:02.6]} 60. Bxe5+ {[%clk 0:00:01.8]} 60... Ke7 {[%clk 0:00:02.2]} 61. Bxd6+
{[%clk 0:00:02.7]} 61... Qxd6+ {[%clk 0:00:03.1]} 0-1

[Event "*** Titled Tuesday Blitz"]
[Site "Chess.com"]
[Date "2020.04.28"]
[Round "6"]
[White "francyIM"]
[Black "RaunakSadhwani2005"]
[Result "0-1"]
[WhiteElo "2712"]
[BlackElo "2886"]
[TimeControl "180+1"]
[EndTime "11:08:19 PDT"]
[Termination "RaunakSadhwani2005 won by resignation"]

1. d4 {[%clk 0:03:00.9]} 1... Nf6 {[%clk 0:02:59.5]} 2. c4 {[%clk 0:02:48.7]}
2... Nc6 {[%clk 0:02:58.2]} 3. Nc3 {[%clk 0:02:46.3]} 3... e5 {[%clk 0:02:58.1]}
4. d5 {[%clk 0:02:46]} 4... Ne7 {[%clk 0:02:58.5]} 5. h4 {[%clk 0:02:46.6]} 5...
Neg8 {[%clk 0:02:58.2]} 6. a3 {[%clk 0:02:45]} 6... Bc5 {[%clk 0:02:56.9]} 7. e3
{[%clk 0:02:44.6]} 7... a6 {[%clk 0:02:56.9]} 8. Bd3 {[%clk 0:02:43]} 8... d6
{[%clk 0:02:56.9]} 9. Nge2 {[%clk 0:02:40.8]} 9... Ne7 {[%clk 0:02:56.9]} 10.
Ng3 {[%clk 0:02:39.5]} 10... h6 {[%clk 0:02:51.9]} 11. b4 {[%clk 0:02:32.6]}
11... Ba7 {[%clk 0:02:51.7]} 12. Bb2 {[%clk 0:02:32.1]} 12... Bg4 {[%clk
0:02:45.3]} 13. Qc2 {[%clk 0:02:31.2]} 13... Rc8 {[%clk 0:02:44.7]} 14. Nf5
{[%clk 0:02:15]} 14... Bxf5 {[%clk 0:02:30.6]} 15. Bxf5 {[%clk 0:02:15.9]} 15...
Nxf5 {[%clk 0:02:31.1]} 16. Qxf5 {[%clk 0:02:16.2]} 16... Qd7 {[%clk 0:02:32]}
17. Qxd7+ {[%clk 0:02:07.8]} 17... Kxd7 {[%clk 0:02:32.9]} 18. Rd1 {[%clk
0:02:06.6]} 18... c6 {[%clk 0:02:30.7]} 19. dxc6+ {[%clk 0:02:06.7]} 19... Rxc6
{[%clk 0:02:31.6]} 20. c5 {[%clk 0:02:06.5]} 20... Ke6 {[%clk 0:02:31.2]} 21.
Rxd6+ {[%clk 0:02:04.4]} 21... Rxd6 {[%clk 0:02:32.1]} 22. cxd6 {[%clk
0:02:05.3]} 22... Kxd6 {[%clk 0:02:32.9]} 23. Ke2 {[%clk 0:02:05.9]} 23... Rc8
{[%clk 0:02:31.8]} 24. Rd1+ {[%clk 0:02:05]} 24... Ke6 {[%clk 0:02:31.7]} 25. f3
{[%clk 0:02:03.4]} 25... Rc4 {[%clk 0:02:25.8]} 26. g4 {[%clk 0:01:34]} 26... e4
{[%clk 0:02:25.5]} 27. g5 {[%clk 0:01:33.1]} 27... exf3+ {[%clk 0:02:24.4]} 28.
Kxf3 {[%clk 0:01:32.2]} 28... hxg5 {[%clk 0:02:23.7]} 29. hxg5 {[%clk
0:01:33.1]} 29... Ne8 {[%clk 0:01:58.4]} 30. Nd5 {[%clk 0:01:27.5]} 30... Bb8
{[%clk 0:01:42.5]} 31. Rd2 {[%clk 0:01:15.2]} 31... f6 {[%clk 0:01:35.9]} 32.
gxf6 {[%clk 0:01:07.9]} 32... gxf6 {[%clk 0:01:36.8]} 33. Nc3 {[%clk 0:01:03.3]}
33... Nd6 {[%clk 0:01:25.6]} 34. Ne2 {[%clk 0:00:59.3]} 34... Rh4 {[%clk
0:00:51.9]} 35. Nf4+ {[%clk 0:00:52.8]} 35... Kf7 {[%clk 0:00:47.4]} 36. Rc2
{[%clk 0:00:47.7]} 36... Rh1 {[%clk 0:00:35.6]} 37. Bd4 {[%clk 0:00:43.1]} 37...
Rf1+ {[%clk 0:00:32.1]} 38. Ke2 {[%clk 0:00:40]} 38... Rb1 {[%clk 0:00:32.1]}
39. Kf3 {[%clk 0:00:25.9]} 39... Nb5 {[%clk 0:00:24.9]} 40. Nd5 {[%clk
0:00:20.6]} 40... Ke6 {[%clk 0:00:21.5]} 41. Nb6 {[%clk 0:00:20.1]} 41... Ba7
{[%clk 0:00:18.2]} 42. Bc5 {[%clk 0:00:18.8]} 42... Nxa3 {[%clk 0:00:17.7]} 43.
Rd2 {[%clk 0:00:17.9]} 43... Bxb6 {[%clk 0:00:17.3]} 44. Rd6+ {[%clk 0:00:18.1]}
44... Kf5 {[%clk 0:00:14]} 45. Rxb6 {[%clk 0:00:18.5]} 45... Nc4 {[%clk
0:00:13.1]} 46. Rxb7 {[%clk 0:00:18]} 46... Ne5+ {[%clk 0:00:13.5]} 47. Ke2
{[%clk 0:00:17.1]} 47... Ke4 {[%clk 0:00:13.6]} 48. Kd2 {[%clk 0:00:15.4]} 48...
Rb3 {[%clk 0:00:12.6]} 49. Rb6 {[%clk 0:00:13.9]} 49... Nc4+ {[%clk 0:00:12.1]}
50. Kc2 {[%clk 0:00:13.8]} 50... Nxb6 {[%clk 0:00:11.9]} 51. Kxb3 {[%clk
0:00:13.7]} 51... Nd5 {[%clk 0:00:12.8]} 52. Ka4 {[%clk 0:00:14.1]} 52... Nxe3
{[%clk 0:00:12.3]} 53. Bxe3 {[%clk 0:00:14]} 53... Kxe3 {[%clk 0:00:12.4]} 54.
Ka5 {[%clk 0:00:14.7]} 54... f5 {[%clk 0:00:12.8]} 55. Kxa6 {[%clk 0:00:15.6]}
55... f4 {[%clk 0:00:13.3]} 56. b5 {[%clk 0:00:16.5]} 56... f3 {[%clk
0:00:13.7]} 57. b6 {[%clk 0:00:17.4]} 57... f2 {[%clk 0:00:14.2]} 58. b7 {[%clk
0:00:18.1]} 58... f1=Q+ {[%clk 0:00:14.6]} 59. Ka7 {[%clk 0:00:17.8]} 59... Qa1+
{[%clk 0:00:14.5]} 60. Kb6 {[%clk 0:00:17.8]} 60... Qb2+ {[%clk 0:00:14.1]} 61.
Kc7 {[%clk 0:00:18.7]} 61... Qc3+ {[%clk 0:00:13.9]} 62. Kd7 {[%clk 0:00:19.3]}
62... Qb4 {[%clk 0:00:13.8]} 63. Kc7 {[%clk 0:00:20.2]} 63... Qc5+ {[%clk
0:00:13.5]} 64. Kd7 {[%clk 0:00:11.2]} 64... Qb6 {[%clk 0:00:13.2]} 65. Kc8
{[%clk 0:00:11.7]} 65... Qc6+ {[%clk 0:00:13.4]} 66. Kb8 {[%clk 0:00:12.2]}
66... Kd4 {[%clk 0:00:12.8]} 67. Ka7 {[%clk 0:00:12.3]} 0-1

[Event "*** Titled Tuesday Blitz"]
[Site "Chess.com"]
[Date "2020.04.28"]
[Round "6"]
[White "Barcelona_Guy"]
[Black "OparinGrigoriy"]
[Result "1/2-1/2"]
[WhiteElo "2731"]
[BlackElo "2911"]
[TimeControl "180+1"]
[EndTime "11:08:22 PDT"]
[Termination "Game drawn by repetition"]

1. e4 {[%clk 0:03:00.9]} 1... e5 {[%clk 0:02:59.9]} 2. Nf3 {[%clk 0:02:58.9]}
2... Nc6 {[%clk 0:03:00.5]} 3. Bb5 {[%clk 0:02:58.8]} 3... a6 {[%clk 0:03:00.6]}
4. Ba4 {[%clk 0:02:59.2]} 4... Nf6 {[%clk 0:03:01]} 5. O-O {[%clk 0:02:59.7]}
5... Nxe4 {[%clk 0:03:00.7]} 6. d4 {[%clk 0:02:59.1]} 6... b5 {[%clk 0:03:00.8]}
7. Bb3 {[%clk 0:02:59.5]} 7... d5 {[%clk 0:03:01.5]} 8. dxe5 {[%clk 0:03:00]}
8... Be6 {[%clk 0:03:02]} 9. Nbd2 {[%clk 0:03:00.3]} 9... Be7 {[%clk 0:03:02.3]}
10. c3 {[%clk 0:02:59.9]} 10... O-O {[%clk 0:03:02.8]} 11. Bc2 {[%clk 0:03:00]}
11... f5 {[%clk 0:03:03.2]} 12. Nb3 {[%clk 0:02:57.2]} 12... Qd7 {[%clk
0:03:03]} 13. Nfd4 {[%clk 0:02:57.7]} 13... Nxd4 {[%clk 0:03:03.6]} 14. Nxd4
{[%clk 0:02:58.6]} 14... c5 {[%clk 0:03:04.2]} 15. Nxe6 {[%clk 0:02:56.4]} 15...
Qxe6 {[%clk 0:03:05.1]} 16. f3 {[%clk 0:02:55.2]} 16... Ng5 {[%clk 0:03:05.2]}
17. Bxg5 {[%clk 0:02:53.9]} 17... Bxg5 {[%clk 0:03:05.2]} 18. f4 {[%clk
0:02:54.5]} 18... Be7 {[%clk 0:03:05.4]} 19. Qf3 {[%clk 0:02:55]} 19... Rad8
{[%clk 0:03:03.6]} 20. Rad1 {[%clk 0:02:50.7]} 20... g6 {[%clk 0:02:48]} 21. Kh1
{[%clk 0:02:49.9]} 21... Kg7 {[%clk 0:02:47.1]} 22. h3 {[%clk 0:02:42.6]} 22...
h5 {[%clk 0:02:34.4]} 23. Rf2 {[%clk 0:02:27.9]} 23... Rd7 {[%clk 0:02:27.5]}
24. Rfd2 {[%clk 0:02:27.7]} 24... Rfd8 {[%clk 0:02:28.1]} 25. Qf2 {[%clk
0:01:49.2]} 25... h4 {[%clk 0:02:11]} 26. Bb3 {[%clk 0:01:46.8]} 26... c4 {[%clk
0:02:10.5]} 27. Bc2 {[%clk 0:01:47.3]} 27... Qc6 {[%clk 0:02:02.1]} 28. Re1
{[%clk 0:01:40.8]} 28... Qc5 {[%clk 0:01:53.2]} 29. Rd4 {[%clk 0:01:14.1]} 29...
Qb6 {[%clk 0:01:47.1]} 30. Qf3 {[%clk 0:01:04]} 30... Qe6 {[%clk 0:01:43.4]} 31.
Red1 {[%clk 0:00:59.8]} 31... Bc5 {[%clk 0:01:43.2]} 32. R4d2 {[%clk 0:01:00]}
32... d4 {[%clk 0:01:15.5]} 33. cxd4 {[%clk 0:00:59.3]} 33... Bxd4 {[%clk
0:01:16.4]} 34. b3 {[%clk 0:00:52.7]} 34... c3 {[%clk 0:01:13.4]} 35. Rd3 {[%clk
0:00:50.2]} 35... b4 {[%clk 0:01:13.6]} 36. Qe2 {[%clk 0:00:46.8]} 36... a5
{[%clk 0:01:11.2]} 37. Qe1 {[%clk 0:00:46.3]} 37... Qe7 {[%clk 0:00:52.7]} 38.
Qe2 {[%clk 0:00:32.5]} 38... Bc5 {[%clk 0:00:47.2]} 39. Qf3 {[%clk 0:00:20.4]}
39... Kh6 {[%clk 0:00:31.7]} 40. Kh2 {[%clk 0:00:18.9]} 40... Rxd3 {[%clk
0:00:30.5]} 41. Rxd3 {[%clk 0:00:19.8]} 41... Rxd3 {[%clk 0:00:30.8]} 42. Qxd3
{[%clk 0:00:20.7]} 42... Bf2 {[%clk 0:00:29.6]} 43. Kh1 {[%clk 0:00:17.7]} 43...
Bg3 {[%clk 0:00:28.4]} 44. Qd4 {[%clk 0:00:13.8]} 44... Qe6 {[%clk 0:00:20.4]}
45. Kg1 {[%clk 0:00:13.5]} 45... Qc6 {[%clk 0:00:19.2]} 46. Kf1 {[%clk 0:00:11]}
46... Qa6+ {[%clk 0:00:18.9]} 47. Kg1 {[%clk 0:00:09.6]} 47... Qc8 {[%clk
0:00:19.1]} 48. Kf1 {[%clk 0:00:09]} 48... Qc6 {[%clk 0:00:19.6]} 49. Kg1 {[%clk
0:00:06.7]} 49... Kh7 {[%clk 0:00:18.9]} 50. Qa7+ {[%clk 0:00:06]} 50... Kh6
{[%clk 0:00:16.9]} 51. Qd4 {[%clk 0:00:06.3]} 51... Qe6 {[%clk 0:00:17.4]} 52.
Kf1 {[%clk 0:00:05.9]} 52... g5 {[%clk 0:00:17.4]} 53. fxg5+ {[%clk 0:00:05]}
53... Kxg5 {[%clk 0:00:18.3]} 54. Qd8+ {[%clk 0:00:03.4]} 54... Kf4 {[%clk
0:00:17.2]} 55. Qd4+ {[%clk 0:00:03.1]} 55... Kg5 {[%clk 0:00:17.5]} 56. Qd8+
{[%clk 0:00:03.8]} 56... Kg6 {[%clk 0:00:18]} 57. Qd6 {[%clk 0:00:01.8]} 57...
Qxd6 {[%clk 0:00:17.8]} 58. exd6 {[%clk 0:00:02.7]} 58... Bxd6 {[%clk
0:00:18.4]} 59. Ke2 {[%clk 0:00:03.4]} 59... Kf6 {[%clk 0:00:18.8]} 60. Kf3
{[%clk 0:00:04.3]} 60... Ke5 {[%clk 0:00:19]} 61. Ke3 {[%clk 0:00:04.4]} 61...
Be7 {[%clk 0:00:19.1]} 62. Kf3 {[%clk 0:00:04.2]} 62... Bg5 {[%clk 0:00:19.6]}
63. Ke2 {[%clk 0:00:04.4]} 63... Kf4 {[%clk 0:00:19.2]} 64. Kf2 {[%clk
0:00:04.8]} 64... Bf6 {[%clk 0:00:19.6]} 65. Bd3 {[%clk 0:00:04.2]} 65... Bd4+
{[%clk 0:00:19.9]} 66. Ke2 {[%clk 0:00:04.2]} 66... Kg3 {[%clk 0:00:19.6]} 67.
Bxf5 {[%clk 0:00:04.2]} 67... Kxg2 {[%clk 0:00:19.5]} 68. Kd3 {[%clk 0:00:04.4]}
68... Be5 {[%clk 0:00:20.1]} 69. Kc2 {[%clk 0:00:04.5]} 69... Kf3 {[%clk
0:00:20.7]} 70. Bg4+ {[%clk 0:00:04.5]} 70... Ke3 {[%clk 0:00:21.6]} 71. Bc8
{[%clk 0:00:04.9]} 71... Kd4 {[%clk 0:00:22.5]} 72. Bg4 {[%clk 0:00:05.1]} 72...
Bd6 {[%clk 0:00:23.4]} 73. Bf5 {[%clk 0:00:05.4]} 73... Kc5 {[%clk 0:00:24.3]}
74. Bg4 {[%clk 0:00:05.9]} 74... a4 {[%clk 0:00:25.2]} 75. bxa4 {[%clk
0:00:04.2]} 75... Kb6 {[%clk 0:00:25.6]} 76. Kb3 {[%clk 0:00:04.1]} 76... Ka5
{[%clk 0:00:26.1]} 77. Bf5 {[%clk 0:00:04.2]} 77... Bf4 {[%clk 0:00:27]} 78. Bg4
{[%clk 0:00:04.3]} 78... Bd2 {[%clk 0:00:27.6]} 79. Bf5 {[%clk 0:00:04.4]} 79...
Be1 {[%clk 0:00:28.2]} 80. Bg4 {[%clk 0:00:04.5]} 80... Bd2 {[%clk 0:00:28.7]}
81. Bf5 {[%clk 0:00:04.6]} 81... Be1 {[%clk 0:00:29.4]} 82. Bg4 {[%clk
0:00:04.8]} 82... Bd2 {[%clk 0:00:30.1]} 1/2-1/2